Workbook

Sheet Instructions
B2: HOW TO USE THE DYNAMIC TOTAL COST OF OWNERSHIP DASHBOARD
B4: All cells highlighted Green are Input cells. Values can only be edited in these cells to observe the dynamic changes in the dashboard on the right.
B6: All cells highlighted Gray are Fixed cells. These values cannot be edited.
B9: CELL NAME | E9: FUNCTION | F9: ACTION REQUIRED
B10: Vehicle Holding Period (Year) | E10: Editable | F10: Use the drop down menu on Cell C5 to choose the Vehicle holding period from 1 to 10 years
B11: Daily Distance Travelled (km) | E11: Editable | F11: Use the arrows on the right to increase/decrease to input Daily Distance Travelled in km
B12: Daily Distance Travelled (mi) | E12: Fixed
B13: Annual Distance Travelled (km) | E13: Fixed
B14: Annual Distance Travelled (mi) | E14: Fixed
B15: `
B16: Vehicle Purchase Cost | E16: Editable | F16: Add number values to input the purchase cost of a MCFV
B17: Tax | E17: Editable | F17: Add number values to input Tax levied on the MCFV
B18: Annual Insurance Cost | E18: Editable | F18: Add number values to input Annual Insurance cost of the MCFV
B19: Financial Incentive | E19: Editable | F19: Add number values to input Total incentives including FAME subsidy & other miscellaneous incentives
B21: Discount Rate | E21: Editable | F21: Add percentage values to input the present value of future cash flows at the end of holding period
B22: Resale Rate | E22: Editable | F22: Add percentage values to input the resale value of the MCFV at the end of holding period
B24: Terms of Payment | E24: Editable | F24: Add number values to input the Total number of years of loan repayment
B25: Interest Rate | E25: Editable | F25: Add percentage values to input prevailing interest on MCFV Loans
B26: Equity | E26: Editable | F26: Add percentage values to input initial equity payment made for the purchase of the MCFV
B27: Monthly EMI | E27: Fixed
B28: Charging Infrastructure Cost | E28: Editable | F28: Add number values to input the Total cost of Charging Infrastructure
B30: Staff cost per Month | E30: Editable | F30: Add number values to input Total Staff cost incurred in a month
B31: Lithium-Ion Battery Cost | E31: Editable | F31: Add number values to input prevailing cost of Li-Ion battery in USD per kWh
B33: Fuel Cost | E33: Editable | F33: Add number values to input Total cost per unit of Fuel (in associated fuel units)
B34: Capacity of Battery | E34: Editable | F34: Add number values to input capacity of battery for Electric MCFVs in kWh
B35: Number of Battery Replacements | E35: Editable | F35: Add number values to input total number of battery replacements for Electric MCFV
B36: Mileage | E36: Editable | F36: Add number values to input mileage of different models of MCFVs
B37: Annual Maintenance Cost | E37: Editable | F37: Add number values to input the Annual Maintenance cost of an MCFV
B40: NOTES
B43: 1. For more details regarding Methodology and TCO calculations, please refer to the research paper. Total Cost of Ownership Analysis of the Impact of Vehicle Usage on the Economic Viability of Electric Vehicles in India, P. Kumar and S. Chakrabarty Transport. Res. Rec., 2020 (1-10)

Sheet MCFV TCO Dashboard
AK1: 10 YEAR | AL1: TCO | AR1: DYNAMIC | AS1: TCO
AK2: e-MCFV (LT) | AL2: =TCO_1!C11 -> 23.52873691 | AR2: e-MCFV (LT) | AS2: =VLOOKUP($C$5,$AR$10:$AV$20,2,0) -> 33.8365953
AK3: e-MCFV (HT) | AL3: =TCO_1!D11 -> 37.9936544 | AR3: e-MCFV (HT) | AS3: =VLOOKUP($C$5,$AR$10:$AV$20,3,0) -> 54.89234663
AK4: Diesel - MCFV | AL4: =TCO_1!E11 -> 27.27599511 | AR4: Diesel - MCFV | AS4: =VLOOKUP($C$5,$AR$10:$AV$20,4,0) -> 36.72925339
B5: Vehicle Holding Period (Year) | C5: 5 | D5: Use Drop down to choose Holding Period | AK5: CNG - MCFV | AL5: =TCO_1!F11 -> 19.97105113 | AR5: CNG - MCFV | AS5: =VLOOKUP($C$5,$AR$10:$AV$20,5,0) -> 27.5611417
B7: Daily Distance Travelled (km) | C7: 200 | E7: (Use Arrows to input Distance)
B8: Daily Distance Travelled (mi) | C8: =C7*0.621371 -> 124.2742
B10: Annual Distance Travelled (km) | C10: =C7*315 -> 63000 | AK10: Operational Years | AL10: e-MCFV (LT) | AM10: e-MCFV (HT) | AN10: Diesel - MCFV | AO10: CNG - MCFV | AS10: e-MCFV (LT) | AT10: e-MCFV (HT) | AU10: Diesel - MCFV | AV10: CNG - MCFV
B11: Annual Distance Travelled (mi) | C11: =C8*315 -> 39146.373 | AK11: Year 1 | AL11: =TCO_1!C31 -> 104.1867111 | AM11: =TCO_1!C34 -> 171.756059 | AN11: =TCO_1!C37 -> 83.82252392 | AO11: =TCO_1!C40 -> 70.8262954 | AR11: 1 | AS11: =IF($C$5=AR11,AL11:AO11,) -> 0
AK12: Year 2 | AL12: =TCO_1!D31 -> 60.88465858 | AM12: =TCO_1!D34 -> 99.72864233 | AN12: =TCO_1!D37 -> 55.91866115 | AO12: =TCO_1!D40 -> 44.72625971 | AR12: 2 | AS12: =IF($C$5=AR12,AL12:AO12,) -> 0
AK13: Year 3 | AL13: =TCO_1!E31 -> 46.13308564 | AM13: =TCO_1!E34 -> 75.23696152 | AN13: =TCO_1!E37 -> 45.89323503 | AO13: =TCO_1!E40 -> 35.58032829 | AR13: 3 | AS13: =IF($C$5=AR13,AL13:AO13,) -> 0
AK14: Year 4 | AL14: =TCO_1!F31 -> 38.54357052 | AM14: =TCO_1!F34 -> 62.66675503 | AN14: =TCO_1!F37 -> 40.3885309 | AO14: =TCO_1!F40 -> 30.70497868 | AR14: 4 | AS14: =IF($C$5=AR14,AL14:AO14,) -> 0
C15: INR | AK15: Year 5 | AL15: =TCO_1!G31 -> 33.8365953 | AM15: =TCO_1!G34 -> 54.89234663 | AN15: =TCO_1!G37 -> 36.72925339 | AO15: =TCO_1!G40 -> 27.5611417 | AR15: 5 | AS15: =IF($C$5=AR15,AL15:AO15,) -> 33.8365953 | AT15: 54.89234663 | AU15: 36.72925339 | AV15: 27.5611417
AK16: Year 6 | AL16: =TCO_1!H31 -> 30.58426235 | AM16: =TCO_1!H34 -> 49.53636731 | AN16: =TCO_1!H37 -> 34.02079302 | AO16: =TCO_1!H40 -> 25.300668 | AR16: 6 | AS16: =IF($C$5=AR16,AL16:AO16,) -> 0
AK17: Year 7 | AL17: =TCO_1!I31 -> 28.17352916 | AM17: =TCO_1!I34 -> 45.57827098 | AN17: =TCO_1!I37 -> 31.8775281 | AO17: =TCO_1!I40 -> 23.55866671 | AR17: 7 | AS17: =IF($C$5=AR17,AL17:AO17,) -> 0
AK18: Year 8 | AL18: =TCO_1!J31 -> 26.29700886 | AM18: =TCO_1!J34 -> 42.50645087 | AN18: =TCO_1!J37 -> 30.10488286 | AO18: =TCO_1!J40 -> 22.15157925 | AR18: 8 | AS18: =IF($C$5=AR18,AL18:AO18,) -> 0
B19: MODEL | C19: e-MCFV (LT) | D19: e-MCFV (HT) | E19: Diesel - MCFV | F19: CNG - MCFV | AK19: Year 9 | AL19: =TCO_1!K31 -> 24.78323033 | AM19: =TCO_1!K34 -> 40.03560135 | AN19: =TCO_1!K37 -> 28.59333276 | AO19: =TCO_1!K40 -> 20.97652848 | AR19: 9 | AS19: =IF($C$5=AR19,AL19:AO19,) -> 0
B20: =VLOOKUP($C$15,Currency!$B$17:$C$19,2,0) -> Vehicle Purchase Cost (₹) | C20: 3500000 | D20: 5436900 | E20: 2589000 | F20: 2456000 | AK20: Year 10 | AL20: =TCO_1!L31 -> 23.52873691 | AM20: =TCO_1!L34 -> 37.9936544 | AN20: =TCO_1!L37 -> 27.27599511 | AO20: =TCO_1!L40 -> 19.97105113 | AR20: 10 | AS20: =IF($C$5=AR20,AL20:AO20,) -> 0
B21: =VLOOKUP($C$15,Currency!$B$21:$C$23,2,0) -> Road Tax (₹) | C21: 0 | D21: 0 | E21: 19054 | F21: 20500
B22: =VLOOKUP($C$15,Currency!$B$25:$C$27,2,0) -> Insurance cost (₹) | C22: 72000 | D22: 450000 | E22: 37192 | F22: 36500
B23: =VLOOKUP($C$15,Currency!$B$29:$C$31,2,0) -> Financial Incentive (₹) | C23: 0 | D23: 0 | AL23: e-MCFV (LT) | AM23: e-MCFV (HT) | AN23: Diesel - MCFV | AO23: CNG - MCFV
B25: Discount Rate (%) | C25: 0.1 | D25: 0.1 | E25: 0.1 | F25: 0.1
B26: Resale Rate (%) | C26: 0.2 | D26: 0.2 | E26: 0.1 | F26: 0.1
B28: =VLOOKUP($C$15,Currency!$B$45:$C$47,2,0) -> Financing Component (₹) | AK28: Total Fixed Cost | AL28: =TCO_1!C10/TCO_1!C9 -> 14.68221612 | AM28: =TCO_1!D10/TCO_1!D9 -> 24.39728792 | AN28: =TCO_1!E10/TCO_1!E9 -> 8.850232966 | AO28: =TCO_1!F10/TCO_1!F9 -> 8.404635045
B29: Term of Payment (Years) | C29: 7 | D29: 7 | E29: 7 | F29: 7
B30: Interest Rate (%) | C30: 0.08 | D30: 0.08 | E30: 0.11 | F30: 0.11 | AK30: Total Variable Cost | AL30: =TCO_1!L22/TCO_1!C9 -> 8.846520791 | AM30: =TCO_1!L23/TCO_1!D9 -> 13.59636648 | AN30: =TCO_1!L24/TCO_1!E9 -> 18.42576215 | AO30: =TCO_1!L25/TCO_1!F9 -> 11.56641608
B31: Equity (%) | C31: 0.2 | D31: 0.2 | E31: 0.2 | F31: 0.2 | AK31: Total TCO | AL31: =SUM(AL28:AL30) -> 23.52873691 | AM31: =SUM(AM28:AM30) -> 37.9936544 | AN31: =SUM(AN28:AN30) -> 27.27599511 | AO31: =SUM(AO28:AO30) -> 19.97105113
B32: =VLOOKUP($C$15,Currency!$B$49:$C$51,2,0) -> Monthly EMI (₹) | C32: =Financing!B12 -> 43808.06699 | D32: =Financing!C12 -> 68051.45127 | E32: =Financing!D12 -> 35587.27606 | F32: =Financing!E12 -> 33759.11549
B33: =VLOOKUP($C$15,Currency!$B$53:$C$55,2,0) -> Charging Infrastructure Cost (₹) | C33: 1575000 | D33: 2750000
AK36: Cost Components | AL36: e-MCFV (LT) | AM36: e-MCFV (HT) | AN36: Diesel - MCFV | AO36: CNG - MCFV
AK37: Fixed | AL37: =Summary!B19 -> 6026877.628 | AM37: =Summary!C19 -> 10003701.91 | AN37: =Summary!D19 -> 3563377.189 | AO37: =Summary!E19 -> 3383965.701
AK38: Maintenance | AL38: =Summary!B23 -> 17250 | AM38: =Summary!C23 -> 21500 | AN38: =Summary!D23 -> 43186 | AO38: =Summary!E23 -> 44100
B39: =VLOOKUP($C$15,Currency!$B$33:$C$35,2,0) -> Staff Cost per Month (₹) | C39: 50000 | AK39: Battery Replacement | AL39: =Summary!B24 -> 75007.5 | AM39: =Summary!C24 -> 300030 | AN39: =Summary!D24 -> 0 | AO39: =Summary!E24 -> 0
B40: Lithium-Ion Battery Cost (USD/kWh) | C40: 137
AK41: Fuel | AL41: =Summary!B25 -> 214772.7273 | AM41: =Summary!C25 -> 472500 | AN41: =Summary!D25 -> 1246000 | AO41: =Summary!E25 -> 541800
B42: MODEL | C42: e-MCFV (LT) | D42: e-MCFV (HT) | E42: Diesel - MCFV | F42: CNG - MCFV
B43: =VLOOKUP($C$15,Currency!$B$37:$C$39,2,0) -> Fuel cost (₹/kWh; ₹/L; ₹/kg ) | C43: 6 | D43: 6 | E43: 89 | F43: 43 | AL43: e-MCFV (LT) | AM43: e-MCFV (HT) | AN43: Diesel - MCFV | AO43: CNG - MCFV
B44: Capacity of Battery (kWh) | C44: 62.5 | D44: 250
B45: Number of Battery Replacements | C45: 1 | D45: 1
B46: Mileage (km/kWh; km/L; km/kg) | C46: 1.76 | D46: 0.8 | E46: 4.5 | F46: 5
B47: =VLOOKUP($C$15,Currency!$B$41:$C$43,2,0) -> Annual Maintenance Cost (₹) | C47: 17250 | D47: 21500 | E47: 43186 | F47: 44100 | AK47: Fixed Cost | AL47: =AL28/AL31 -> 0.6240120825 | AM47: =AM28/AM31 -> 0.6421411234 | AN47: 0.3244696639 | AO47: 0.4208408958
AK48: Variable Cost | AL48: =AL30/AL31 -> 0.3759879175 | AM48: =AM30/AM31 -> 0.3578588766 | AN48: 0.6755303361 | AO48: 0.5791591042
B52: NOTES | AL52: =SUM(AL47:AL51) -> 1 | AM52: =SUM(AM47:AM51) -> 1 | AN52: =SUM(AN47:AN51) -> 1 | AO52: =SUM(AO47:AO51) -> 1
B54: 1. Model Key
B55: e-MCFV (LT) = Electric Medium Commercial Freight Vehicle - Low Tonnage (7.5 Ton)
B56: e-MCFV (HT) = Electric Medium Commercial Freight Vehicle - High Tonnage (16 Ton) | AK56: 10 YEAR | AL56: TCO
AK57: e-MCFV (LT) | AL57: =AL2/4.9 -> 4.801783043
B58: 2. Financial Incentives can be added by referencing Department of Heavy Industry's website | AK58: e-MCFV (HT) | AL58: =AL3/8 -> 4.7492068
B59: https://fame2.heavyindustry.gov.in/ModelUnderFame.aspx | AK59: Diesel - MCFV | AL59: =AL4/11 -> 2.479635919
AK60: CNG - MCFV | AL60: =AL5/10.2 -> 1.957946189
AK62: Operational Years | AL62: e-MCFV (LT) | AM62: e-MCFV (HT) | AN62: Diesel - MCFV | AO62: CNG - MCFV
AK63: Year 1 | AL63: =AL11/4.9 -> 21.2625941 | AM63: =AM11/10.5 -> 16.3577199 | AN63: =AN11/9.1 -> 9.211266365 | AO63: 7.783109384
AK64: Year 2 | AL64: 12.42544053 | AM64: 9.497965936 | AN64: 6.144907818 | AO64: 4.914973594
AK65: Year 3 | AL65: 9.414915437 | AM65: 7.165424907 | AN65: 5.043212641 | AO65: 3.909926185
AK66: Year 4 | AL66: 7.866034801 | AM66: 5.968262383 | AN66: 4.438300099 | AO66: 3.374173481
AK67: Year 5 | AL67: 6.905427613 | AM67: 5.227842536 | AN67: 4.036181691 | AO67: 3.02869689
AK68: Year 6 | AL68: 6.241686194 | AM68: 4.717749267 | AN68: 3.738548683 | AO68: 2.780293187
AK69: Year 7 | AL69: 5.749699829 | AM69: 4.340787713 | AN69: 3.503025065 | AO69: 2.588864474
AK70: Year 8 | AL70: 5.366736502 | AM70: 4.048233416 | AN70: 3.308228886 | AO70: 2.434239478
AK71: Year 9 | AL71: 5.057802109 | AM71: 3.812914414 | AN71: 3.142124479 | AO71: 2.30511302
AK72: Year 10 | AL72: 4.801783043 | AM72: 3.618443276 | AN72: 2.9973621 | AO72: 2.194621003

Sheet Summary
A1: TRAVEL DETAILS
A2: Number of Vehicle | B2: 1
A3: Life of Vehicle (yrs) | B3: 10
A4: Annual drive distance (KM) | B4: ='MCFV TCO Dashboard'!C10 -> 63000
A5: Total Distance Travel (KM) | B5: =B3*B4 -> 630000
A6: LIB Cost (USD/kWh) | B6: ='MCFV TCO Dashboard'!C40 -> 137
A7: USD to INR | B7: 73
A8: VRLA Cost (USD/kWh) | B8: 100
A9: General Inputs | B9: e-MCFV (LT) | C9: e-MCFV (HT) | D9: Diesel - MCFV | E9: CNG - MCFV
A10: Discount rate (%) | B10: ='MCFV TCO Dashboard'!C25 -> 0.1 | C10: ='MCFV TCO Dashboard'!D25 -> 0.1 | D10: ='MCFV TCO Dashboard'!E25 -> 0.1 | E10: ='MCFV TCO Dashboard'!F25 -> 0.1
A11: Resale rate (%) | B11: ='MCFV TCO Dashboard'!C26 -> 0.2 | C11: ='MCFV TCO Dashboard'!D26 -> 0.2 | D11: ='MCFV TCO Dashboard'!E26 -> 0.1 | E11: ='MCFV TCO Dashboard'!F26 -> 0.1
A13: Capital Cost | B13: e-MCFV (LT) | C13: e-MCFV (HT) | D13: Diesel - MCFV | E13: CNG - MCFV
A14: Total Vehicle Cost (₹) | B14: ='Capital Cost'!B8 -> 4451877.628 | C14: ='Capital Cost'!C8 -> 7253701.907 | D14: ='Capital Cost'!D8 -> 3563377.189 | E14: ='Capital Cost'!E8 -> 3383965.701
A15: Resale Value (₹) | B15: =B14*B11 -> 890375.5255 | C15: =C14*C11 -> 1450740.381 | D15: =D14*D11 -> 356337.7189 | E15: =E14*E11 -> 338396.5701
A16: Total Charging Infrastructure Cost (₹/Vehicle) | B16: ='MCFV TCO Dashboard'!C33/Summary!B2 -> 1575000 | C16: ='MCFV TCO Dashboard'!D33/Summary!B2 -> 2750000 | D16: ='Capital Cost'!D19/B2 -> 0 | E16: ='Capital Cost'!E19/B2 -> 0
A17: Misc. Cost (₹) | B17: 0 | C17: 0 | D17: 0 | E17: 0
A18: Financial Incentive (₹) | B18: ='MCFV TCO Dashboard'!C23 -> 0 | C18: ='MCFV TCO Dashboard'!D23 -> 0 | D18: 0 | E18: 0
A19: Total Capital Cost (₹) excl. Resale Value | B19: =(B14+B16+B17)-B18 -> 6026877.628 | C19: =(C14+C16+C17)-C18 -> 10003701.91 | D19: 3563377.189 | E19: 3383965.701
A21: Annual Operational Cost | B21: e-MCFV (LT) | C21: e-MCFV (HT) | D21: Diesel - MCFV | E21: CNG - MCFV
A22: Staff Cost (₹) | B22: ='Operational Cost'!B4 -> 600000 | C22: ='Operational Cost'!C4 -> 600000 | D22: ='Operational Cost'!D4 -> 600000 | E22: ='Operational Cost'!E4 -> 600000
A23: Maintenance Cost (₹) | B23: ='Operational Cost'!B18 -> 17250 | C23: ='Operational Cost'!C18 -> 21500 | D23: ='Operational Cost'!D18 -> 43186 | E23: ='Operational Cost'!E18 -> 44100
A24: Battery Replacement Cost (₹)* | B24: ='Operational Cost'!B27/B3 -> 75007.5 | C24: ='Operational Cost'!C27/B3 -> 300030 | D24: ='Operational Cost'!D27/B3 -> 0
A25: Average Fuel Cost (₹) | B25: ='Operational Cost'!B11 -> 214772.7273 | C25: ='Operational Cost'!C11 -> 472500 | D25: ='Operational Cost'!D11 -> 1246000 | E25: ='Operational Cost'!E11 -> 541800
A26: Misc. Cost (₹) | B26: 0 | C26: 0 | D26: 0 | E26: 0
A27: Total Operational Cost (₹) | B27: =(SUM(B22:B26)) -> 907030.2273 | C27: =(SUM(C22:C26)) -> 1394030 | D27: =(SUM(D22:D26)) -> 1889186 | E27: =(SUM(E22:E26)) -> 1185900
A29: Total Operational Cost for life of MCFV | B29: =B27*$B$3 -> 9070302.273 | C29: =C27*$B$3 -> 13940300 | D29: =D27*$B$3 -> 18891860 | E29: =E27*$B$3 -> 11859000
A30: Average TCO | B30: =TCO_1!C11 -> 23.52873691 | C30: =TCO_1!D11 -> 37.9936544 | D30: =TCO_1!E11 -> 27.27599511 | E30: =TCO_1!F11 -> 19.97105113

Sheet Currency (hidden)
B2: CURRENCY CONVERSION
B4: USD | C4: INR | D4: Conversion
B5: 1 | C5: 73 | D5: =B5*C5 -> 73
B7: EURO | C7: INR | D7: Conversion
B8: 1 | C8: 82 | D8: =B8*C8 -> 82
B16: DROP DOWN | E16: DASHBOARD TITLE | H16: Gallon Calculation | K16: DASHBOARD TITLE 2
B17: INR | C17: =IF(B17='MCFV TCO Dashboard'!$C$15,"Vehicle Purchase Cost (₹)","") -> Vehicle Purchase Cost (₹) | E17: INR | F17: =IF(E17='MCFV TCO Dashboard'!C15,"TCO BY MODELS AT YEAR 10 (₹ / km)","") -> TCO BY MODELS AT YEAR 10 (₹ / km) | H17: USD | K17: 1 | L17: =IF('MCFV TCO Dashboard'!$C$5=Currency!K17,"TCO AT YEAR 1","") -> 
B18: USD | C18: =IF(B18='MCFV TCO Dashboard'!$C$15,"Vehicle Purchase Cost ($)","") ->  | E18: USD | F18: =IF(E18='MCFV TCO Dashboard'!C15,"TCO BY MODELS AT YEAR 10 ($ / mi)","") ->  | H18: Gallon Calculation | I18: =IF('[1]Dynamic Ranges for 2W'!$C$15=H17,'[1]Dynamic Ranges for 2W'!F38*3.78,"-") -> - | K18: 2 | L18: =IF('MCFV TCO Dashboard'!$C$5=Currency!K18,"TCO AT YEAR 2","") -> 
B19: EURO | C19: =IF(B19='MCFV TCO Dashboard'!$C$15,"Vehicle Purchase Cost (€)","") ->  | E19: EURO | F19: =IF(E19='MCFV TCO Dashboard'!C15,"TCO BY MODEL AT YEAR 10 (€ / km)","") ->  | K19: 3 | L19: =IF('MCFV TCO Dashboard'!$C$5=Currency!K19,"TCO AT YEAR 3","") -> 
K20: 4 | L20: =IF('MCFV TCO Dashboard'!$C$5=Currency!K20,"TCO AT YEAR 4","") -> 
B21: INR | C21: =IF(B21='MCFV TCO Dashboard'!$C$15,"Road Tax (₹)","") -> Road Tax (₹) | E21: INR | F21: =IF(E21='MCFV TCO Dashboard'!C15,"TCO BREAKDOWN BY COST AT YEAR 10 (₹ / km)","") -> TCO BREAKDOWN BY COST AT YEAR 10 (₹ / km) | K21: 5 | L21: =IF('MCFV TCO Dashboard'!$C$5=Currency!K21,"TCO AT YEAR 5","") -> TCO AT YEAR 5
B22: USD | C22: =IF(B22='MCFV TCO Dashboard'!$C$15,"Road Tax ($)","") ->  | E22: USD | F22: =IF(E22='MCFV TCO Dashboard'!C15,"TCO BREAKDOWN BY COST AT YEAR 10 ($ / mi)","") ->  | K22: 6 | L22: =IF('MCFV TCO Dashboard'!$C$5=Currency!K22,"TCO AT YEAR 6","") -> 
B23: EURO | C23: =IF(B23='MCFV TCO Dashboard'!$C$15,"Road Tax (€)","") ->  | E23: EURO | F23: =IF(E23='MCFV TCO Dashboard'!C15,"TCO BREAKDOWN BY COST AT YEAR 10 (€ / km)","") ->  | K23: 7 | L23: =IF('MCFV TCO Dashboard'!$C$5=Currency!K23,"TCO AT YEAR 7","") -> 
K24: 8 | L24: =IF('MCFV TCO Dashboard'!$C$5=Currency!K24,"TCO AT YEAR 8","") -> 
B25: INR | C25: =IF(B25='MCFV TCO Dashboard'!$C$15,"Insurance cost (₹)","") -> Insurance cost (₹) | E25: INR | F25: =IF(E25='MCFV TCO Dashboard'!C15,"TOTAL COST OF OWNERSHIP OVER YEARS (₹ / km)","") -> TOTAL COST OF OWNERSHIP OVER YEARS (₹ / km) | K25: 9 | L25: =IF('MCFV TCO Dashboard'!$C$5=Currency!K25,"TCO AT YEAR 9","") -> 
B26: USD | C26: =IF(B26='MCFV TCO Dashboard'!$C$15,"Insurance Cost ($)","") ->  | E26: USD | F26: =IF(E26='MCFV TCO Dashboard'!C15,"TOTAL COST OF OWNERSHIP OVER YEARS ($ / mi)","") ->  | K26: 10 | L26: =IF('MCFV TCO Dashboard'!$C$5=Currency!K26,"TCO AT YEAR 10","") -> 
B27: EURO | C27: =IF(B27='MCFV TCO Dashboard'!$C$15,"Insurance Cost (€)","") ->  | E27: EURO | F27: =IF(E27='MCFV TCO Dashboard'!C15,"TOTAL COST OF OWNERSHIP OVER YEARS (€ / km)","") -> 
B29: INR | C29: =IF(B29='MCFV TCO Dashboard'!$C$15,"Financial Incentive (₹)","") -> Financial Incentive (₹)
B30: USD | C30: =IF(B30='MCFV TCO Dashboard'!$C$15,"Financial Incentive ($)","") -> 
B31: EURO | C31: =IF(B31='MCFV TCO Dashboard'!$C$15,"Financial Incentive (€)","") -> 
B33: INR | C33: =IF(B33='MCFV TCO Dashboard'!$C$15,"Staff Cost per Month (₹)","") -> Staff Cost per Month (₹)
B34: USD | C34: =IF(B34='MCFV TCO Dashboard'!$C$15,"Staff Cost per Month ($)","") -> 
B35: EURO | C35: =IF(B35='MCFV TCO Dashboard'!$C$15,"Staff Cost per Month (€)","") -> 
B37: INR | C37: =IF(B37='MCFV TCO Dashboard'!$C$15,"Fuel cost (₹/kWh; ₹/L; ₹/kg )","") -> Fuel cost (₹/kWh; ₹/L; ₹/kg )
B38: USD | C38: =IF(B38='MCFV TCO Dashboard'!$C$15,"Fuel cost ($/kWh; $/gal; $/GGE)","") -> 
B39: EURO | C39: =IF(B39='MCFV TCO Dashboard'!$C$15,"Fuel cost (€/kWh; €/L; €/kg )","") -> 
B41: INR | C41: =IF(B41='MCFV TCO Dashboard'!$C$15,"Annual Maintenance Cost (₹)","") -> Annual Maintenance Cost (₹)
B42: USD | C42: =IF(B42='MCFV TCO Dashboard'!$C$15,"Annual Maintenance Cost ($)","") -> 
B43: EURO | C43: =IF(B43='MCFV TCO Dashboard'!$C$15,"Annual Maintenance Cost (€)","") -> 
B45: INR | C45: =IF(B45='MCFV TCO Dashboard'!$C$15,"Financing Component (₹)","") -> Financing Component (₹)
B46: USD | C46: =IF(B46='MCFV TCO Dashboard'!$C$15,"Financing Component ($)","") -> 
B47: EURO | C47: =IF(B47='MCFV TCO Dashboard'!$C$15,"Financing Component (€)","") -> 
B49: INR | C49: =IF(B49='MCFV TCO Dashboard'!$C$15,"Monthly EMI (₹)","") -> Monthly EMI (₹)
B50: USD | C50: =IF(B50='MCFV TCO Dashboard'!$C$15,"Monthly EMI ($)","") -> 
B51: EURO | C51: =IF(B51='MCFV TCO Dashboard'!$C$15,"Monthly EMI (€)","") -> 
B53: INR | C53: =IF(B53='MCFV TCO Dashboard'!$C$15,"Charging Infrastructure Cost (₹)","") -> Charging Infrastructure Cost (₹)
B54: USD | C54: =IF(B54='MCFV TCO Dashboard'!$C$15,"Charging Infrastructure Cost ($)","") -> 
B55: EURO | C55: =IF(B55='MCFV TCO Dashboard'!$C$15,"Charging Infrastructure Cost (€)","") -> 

Sheet Capital Cost (hidden)
A1: Vehicle Cost | B1: e-MCFV (LT) | C1: e-MCFV (HT) | D1: Diesel - MCFV | E1: CNG - MCFV
A2: Purchase Cost (₹) | B2: =VLOOKUP('MCFV TCO Dashboard'!$C$15,'Capital Cost'!$A$26:$E$28,2,0) -> 3500000 | C2: =VLOOKUP('MCFV TCO Dashboard'!$C$15,'Capital Cost'!$A$26:$E$28,3,0) -> 5436900 | D2: =VLOOKUP('MCFV TCO Dashboard'!$C$15,'Capital Cost'!$A$26:$E$28,4,0) -> 2589000 | E2: =VLOOKUP('MCFV TCO Dashboard'!$C$15,'Capital Cost'!$A$26:$E$28,5,0) -> 2456000
A3: Tax (₹) | B3: =VLOOKUP('MCFV TCO Dashboard'!$C$15,'Capital Cost'!$A$31:$E$33,2,0) -> 0 | C3: =VLOOKUP('MCFV TCO Dashboard'!$C$15,'Capital Cost'!$A$31:$E$33,3,0) -> 0 | D3: =VLOOKUP('MCFV TCO Dashboard'!$C$15,'Capital Cost'!$A$31:$E$33,4,0) -> 19054 | E3: =VLOOKUP('MCFV TCO Dashboard'!$C$15,'Capital Cost'!$A$31:$E$33,5,0) -> 20500
A4: Insurance (₹) | B4: =VLOOKUP('MCFV TCO Dashboard'!$C$15,'Capital Cost'!$A$36:$E$38,2,0) -> 72000 | C4: =VLOOKUP('MCFV TCO Dashboard'!$C$15,'Capital Cost'!$A$36:$E$38,3,0) -> 450000 | D4: =VLOOKUP('MCFV TCO Dashboard'!$C$15,'Capital Cost'!$A$36:$E$38,4,0) -> 37192 | E4: =VLOOKUP('MCFV TCO Dashboard'!$C$15,'Capital Cost'!$A$36:$E$38,5,0) -> 36500
A5: Financing Component (₹) | B5: =Financing!B17 -> 879877.6275 | C5: =Financing!C17 -> 1366801.907 | D5: =Financing!D17 -> 918131.1889 | E5: =Financing!E17 -> 870965.701
A6: Total Financial Incentive (₹) | B6: 0 | C6: 0 | D6: 0 | E6: 0
A7: Misc. Cost (₹) | B7: 0 | C7: 0 | D7: 0 | E7: 0
A8: Total Vehicle Cost (₹) | B8: =((B2+B3+B4+B5+B7)-B6) -> 4451877.628 | C8: =((C2+C3+C4+C5+C7)-C6) -> 7253701.907 | D8: =((D2+D3+D4+D5+D7)-D6) -> 3563377.189 | E8: =((E2+E3+E4+E5+E7)-E6) -> 3383965.701
A10: Charging Infrastructure Cost | B10: e-MCFV (LT) | C10: e-MCFV (HT) | D10: Diesel - MCFV | E10: CNG - MCFV
A11: No. of Slow Charger (SC) | B11: 1 | C11: 0 | D11: 0 | E11: 0
A12: Cost of SC per unit (₹) | B12: 900000 | C12: 800000 | D12: 0 | E12: 0
A13: Total Cost of SC (₹) | B13: =B11*B12 -> 900000 | C13: =C11*C12 -> 0 | D13: =D11*D12 -> 0 | E13: 0
A14: No. of Fast Charger (FC) | B14: 0.2 | C14: 1 | D14: 0 | E14: 0
A15: Cost of FC per unit (₹) | B15: 1800000 | C15: 2200000 | D15: 0 | E15: 0
A16: Total Cost of FC (₹) | B16: =B14*B15 -> 360000 | C16: =C14*C15 -> 2200000 | D16: =D14*D15 -> 0 | E16: 0
A17: Installation cost of Charging Infra (₹) | B17: =(B13+B16)*25/100 -> 315000 | C17: =(C13+C16)*25/100 -> 550000 | D17: =(D13+D16)*20/100 -> 0 | E17: 0
A18: Total incentive for Charging Infra (₹) | B18: 0 | C18: 0 | D18: 0 | E18: 0
A19: Total Cost of Charging Infra (Rs.) | B19: =(B13+B16+B17)-B18 -> 1575000 | C19: =(C13+C16+C17)-C18 -> 2750000 | D19: =(D13+D16+D17)-D18 -> 0 | E19: 0
A22: Per Km Capital Cost | B22: =(B8+B19)/Summary!$B$4 -> 95.66472425 | C22: =(C8+C19)/Summary!$B$4 -> 158.7889192 | D22: =(D8+D19)/Summary!$B$4 -> 56.56154268 | E22: =(E8+E19)/Summary!$B$4 -> 53.71374129
B23: SC = 60kW; FC=120kW (0.5c charging)
A25: PURCHASE COST
A26: INR | B26: =IF($A$26='MCFV TCO Dashboard'!$C$15,'MCFV TCO Dashboard'!C20,) -> 3500000 | C26: =IF($A$26='MCFV TCO Dashboard'!$C$15,'MCFV TCO Dashboard'!D20,) -> 5436900 | D26: =IF($A$26='MCFV TCO Dashboard'!$C$15,'MCFV TCO Dashboard'!E20,) -> 2589000 | E26: =IF($A$26='MCFV TCO Dashboard'!$C$15,'MCFV TCO Dashboard'!F20,) -> 2456000
A27: USD | B27: =IF($A$27='MCFV TCO Dashboard'!$C$15,'MCFV TCO Dashboard'!C20*Currency!$C$5,) -> 0 | C27: =IF($A$27='MCFV TCO Dashboard'!$C$15,'MCFV TCO Dashboard'!D20*Currency!$C$5,) -> 0 | D27: =IF($A$27='MCFV TCO Dashboard'!$C$15,'MCFV TCO Dashboard'!E20*Currency!$C$5,) -> 0 | E27: =IF($A$27='MCFV TCO Dashboard'!$C$15,'MCFV TCO Dashboard'!F20*Currency!$C$5,) -> 0
A28: EURO | B28: =IF($A$28='MCFV TCO Dashboard'!$C$15,'MCFV TCO Dashboard'!C20*Currency!$C$8,) -> 0 | C28: =IF($A$28='MCFV TCO Dashboard'!$C$15,'MCFV TCO Dashboard'!D20*Currency!$C$8,) -> 0 | D28: =IF($A$28='MCFV TCO Dashboard'!$C$15,'MCFV TCO Dashboard'!E20*Currency!$C$8,) -> 0 | E28: =IF($A$28='MCFV TCO Dashboard'!$C$15,'MCFV TCO Dashboard'!F20*Currency!$C$8,) -> 0
A30: TAX
A31: INR | B31: =IF($A$31='MCFV TCO Dashboard'!$C$15,'MCFV TCO Dashboard'!C21,) -> 0 | C31: =IF($A$31='MCFV TCO Dashboard'!$C$15,'MCFV TCO Dashboard'!D21,) -> 0 | D31: =IF($A$31='MCFV TCO Dashboard'!$C$15,'MCFV TCO Dashboard'!E21,) -> 19054 | E31: =IF($A$31='MCFV TCO Dashboard'!$C$15,'MCFV TCO Dashboard'!F21,) -> 20500
A32: USD | B32: =IF($A$32='MCFV TCO Dashboard'!$C$15,'MCFV TCO Dashboard'!C21*Currency!$C$5,) -> 0 | C32: =IF($A$32='MCFV TCO Dashboard'!$C$15,'MCFV TCO Dashboard'!D21*Currency!$C$5,) -> 0 | D32: =IF($A$32='MCFV TCO Dashboard'!$C$15,'MCFV TCO Dashboard'!E21*Currency!$C$5,) -> 0 | E32: =IF($A$32='MCFV TCO Dashboard'!$C$15,'MCFV TCO Dashboard'!F21*Currency!$C$5,) -> 0
A33: EURO | B33: =IF($A$33='MCFV TCO Dashboard'!$C$15,'MCFV TCO Dashboard'!C21*Currency!$C$8,) -> 0 | C33: =IF($A$33='MCFV TCO Dashboard'!$C$15,'MCFV TCO Dashboard'!D21*Currency!$C$8,) -> 0 | D33: =IF($A$33='MCFV TCO Dashboard'!$C$15,'MCFV TCO Dashboard'!E21*Currency!$C$8,) -> 0 | E33: =IF($A$33='MCFV TCO Dashboard'!$C$15,'MCFV TCO Dashboard'!F21*Currency!$C$8,) -> 0
A35: INSURANCE
A36: INR | B36: =IF($A$36='MCFV TCO Dashboard'!$C$15,'MCFV TCO Dashboard'!C22,) -> 72000 | C36: =IF($A$36='MCFV TCO Dashboard'!$C$15,'MCFV TCO Dashboard'!D22,) -> 450000 | D36: =IF($A$36='MCFV TCO Dashboard'!$C$15,'MCFV TCO Dashboard'!E22,) -> 37192 | E36: =IF($A$36='MCFV TCO Dashboard'!$C$15,'MCFV TCO Dashboard'!F22,) -> 36500
A37: USD | B37: =IF($A$37='MCFV TCO Dashboard'!$C$15,'MCFV TCO Dashboard'!C22*Currency!$C$5,) -> 0 | C37: =IF($A$37='MCFV TCO Dashboard'!$C$15,'MCFV TCO Dashboard'!D22*Currency!$C$5,) -> 0 | D37: =IF($A$37='MCFV TCO Dashboard'!$C$15,'MCFV TCO Dashboard'!E22*Currency!$C$5,) -> 0 | E37: =IF($A$37='MCFV TCO Dashboard'!$C$15,'MCFV TCO Dashboard'!F22*Currency!$C$5,) -> 0
A38: EURO | B38: =IF($A$38='MCFV TCO Dashboard'!$C$15,'MCFV TCO Dashboard'!C22*Currency!$C$8,) -> 0 | C38: =IF($A$38='MCFV TCO Dashboard'!$C$15,'MCFV TCO Dashboard'!D22*Currency!$C$8,) -> 0 | D38: =IF($A$38='MCFV TCO Dashboard'!$C$15,'MCFV TCO Dashboard'!E22*Currency!$C$8,) -> 0 | E38: =IF($A$38='MCFV TCO Dashboard'!$C$15,'MCFV TCO Dashboard'!F22*Currency!$C$8,) -> 0
A40: INCENTIVE
A41: INR | B41: =IF($A$41='MCFV TCO Dashboard'!$C$15,'MCFV TCO Dashboard'!C23,) -> 0 | C41: =IF($A$41='MCFV TCO Dashboard'!$C$15,'MCFV TCO Dashboard'!D23,) -> 0 | D41: =IF($A$41='MCFV TCO Dashboard'!$C$15,'MCFV TCO Dashboard'!E23,) -> 0 | E41: =IF($A$41='MCFV TCO Dashboard'!$C$15,'MCFV TCO Dashboard'!F23,) -> 0
A42: USD | B42: =IF($A$42='MCFV TCO Dashboard'!$C$15,'MCFV TCO Dashboard'!C23*Currency!$C$5,) -> 0 | C42: =IF($A$42='MCFV TCO Dashboard'!$C$15,'MCFV TCO Dashboard'!D23*Currency!$C$5,) -> 0 | D42: =IF($A$42='MCFV TCO Dashboard'!$C$15,'MCFV TCO Dashboard'!E23*Currency!$C$5,) -> 0 | E42: =IF($A$42='MCFV TCO Dashboard'!$C$15,'MCFV TCO Dashboard'!F23*Currency!$C$5,) -> 0
A43: EURO | B43: =IF($A$43='MCFV TCO Dashboard'!$C$15,'MCFV TCO Dashboard'!C23*Currency!$C$8,) -> 0 | C43: =IF($A$43='MCFV TCO Dashboard'!$C$15,'MCFV TCO Dashboard'!D23*Currency!$C$8,) -> 0 | D43: =IF($A$43='MCFV TCO Dashboard'!$C$15,'MCFV TCO Dashboard'!E23*Currency!$C$8,) -> 0 | E43: =IF($A$43='MCFV TCO Dashboard'!$C$15,'MCFV TCO Dashboard'!F23*Currency!$C$8,) -> 0

Sheet Operational Cost (hidden)
A1: Staff cost | B1: e-MCFV (LT) | C1: e-MCFV (HT) | D1: Diesel - MCFV | E1: CNG - MCFV
A2: Staff Cost (₹ / Month) | B2: ='MCFV TCO Dashboard'!C39 -> 50000 | C2: ='MCFV TCO Dashboard'!C39 -> 50000 | D2: ='MCFV TCO Dashboard'!C39 -> 50000 | E2: ='MCFV TCO Dashboard'!C39 -> 50000
A3: Other Support staff cost (₹ / Month) | B3: 0 | C3: 0 | D3: 0 | E3: 0
A4: Total Annual Staff Cost (₹) | B4: =((B2+B3)*12) -> 600000 | C4: =((C2+C3)*12) -> 600000 | D4: 600000 | E4: 600000
A5: Per km Staff Cost | B5: =B4/Summary!$B$4 -> 9.523809524 | C5: =C4/Summary!$B$4 -> 9.523809524 | D5: =D4/Summary!$B$4 -> 9.523809524 | E5: =E4/Summary!$B$4 -> 9.523809524
A7: Average Fuel Cost | B7: e-MCFV (LT) | C7: e-MCFV (HT) | D7: Diesel - MCFV | E7: CNG - MCFV
A8: Fuel cost (₹/kWh; ₹/L; ₹/kg) | B8: =VLOOKUP('MCFV TCO Dashboard'!$C$15,'Operational Cost'!$A$45:$E$47,2,0) -> 6 | C8: =VLOOKUP('MCFV TCO Dashboard'!$C$15,'Operational Cost'!$A$45:$E$47,3,0) -> 6 | D8: =VLOOKUP('MCFV TCO Dashboard'!$C$15,'Operational Cost'!$A$45:$E$47,4,0) -> 89 | E8: =VLOOKUP('MCFV TCO Dashboard'!$C$15,'Operational Cost'!$A$45:$E$47,5,0) -> 43
A9: Mileage (km/kWh; km/L; km/kg) | B9: ='MCFV TCO Dashboard'!C46 -> 1.76 | C9: ='MCFV TCO Dashboard'!D46 -> 0.8 | D9: ='MCFV TCO Dashboard'!E46 -> 4.5 | E9: ='MCFV TCO Dashboard'!F46 -> 5
A10: Annual fuel consumption (kWh; L; kg) | B10: =Summary!B4/B9 -> 35795.45455 | C10: =Summary!B4/C9 -> 78750 | D10: =Summary!B4/D9 -> 14000 | E10: =Summary!$B$4/E9 -> 12600
A11: Total Annual Fuel Cost ( ₹ ) | B11: =(B10*B8) -> 214772.7273 | C11: =(C10*C8) -> 472500 | D11: =(D10*D8) -> 1246000 | E11: =(E10*E8) -> 541800
A12: Per km Fuel Cost | B12: =B11/Summary!$B$4 -> 3.409090909 | C12: =C11/Summary!$B$4 -> 7.5 | D12: =D11/Summary!$B$4 -> 19.77777778 | E12: =E11/Summary!$B$4 -> 8.6
A14: Maintenance Cost | B14: e-MCFV (LT) | C14: e-MCFV (HT) | D14: Diesel - MCFV | E14: CNG - MCFV
A15: Annual Maintenance Cost (₹) | B15: =VLOOKUP('MCFV TCO Dashboard'!$C$15,'Operational Cost'!$A$40:$E$42,2,0) -> 17250 | C15: =VLOOKUP('MCFV TCO Dashboard'!$C$15,'Operational Cost'!$A$40:$E$42,3,0) -> 21500 | D15: =VLOOKUP('MCFV TCO Dashboard'!$C$15,'Operational Cost'!$A$40:$E$42,4,0) -> 43186 | E15: =VLOOKUP('MCFV TCO Dashboard'!$C$15,'Operational Cost'!$A$40:$E$42,5,0) -> 44100
A16: Other Consumables (₹) | B16: 0 | C16: 0 | D16: 0 | E16: 0
A17: Other Misc. Cost (₹) | B17: 0 | C17: 0 | D17: 0 | E17: 0
A18: Total Annual Maintenance cost (₹) | B18: =(SUM(B15:B17)) -> 17250 | C18: =(SUM(C15:C17)) -> 21500 | D18: =(SUM(D15:D17)) -> 43186 | E18: =(SUM(E15:E17)) -> 44100
A19: Per km Maintenance Cost | B19: =B18/Summary!$B$4 -> 0.2738095238 | C19: =C18/Summary!$B$4 -> 0.3412698413 | D19: =D18/Summary!$B$4 -> 0.6854920635 | E19: =E18/Summary!$B$4 -> 0.7
A21: Battery Replacement Cost | B21: e-MCFV (LT) | C21: e-MCFV (HT) | D21: Diesel - MCFV | E21: CNG - MCFV
A22: Number of battery replacements | B22: ='MCFV TCO Dashboard'!C45 -> 1 | C22: ='MCFV TCO Dashboard'!D45 -> 1 | D22: 0 | E22: 0
A23: Capacity of battery (kWh) | B23: ='MCFV TCO Dashboard'!C44 -> 62.5 | C23: ='MCFV TCO Dashboard'!D44 -> 250 | D23: 0 | E23: 0
A24: Battery Cost (₹ / kWh) | B24: =Summary!$B$6*Summary!$B$7 -> 10001 | C24: =Summary!$B$6*Summary!$B$7 -> 10001 | D24: 0 | E24: 0
A25: Total battery Cost (₹) | B25: =B24*B23 -> 625062.5 | C25: =C24*C23 -> 2500250 | D25: =D24*D23 -> 0 | E25: 0
A26: Battery replacement Charge (₹) | B26: =B25*0.2 -> 125012.5 | C26: =C25*0.2 -> 500050 | D26: 0 | E26: 0
A27: Total battery replacement cost (₹) | B27: =((B25+B26)*B22) -> 750075 | C27: =((C25+C26)*C22) -> 3000300 | D27: =((D25+D26)*D22) -> 0 | E27: 0
A28: Annual Battery Replacement Cost | B28: =B27/Summary!B3 -> 75007.5 | C28: =C27/Summary!B3 -> 300030 | D28: =D27/Summary!B3 -> 0
A29: Per Km Battery Replacement Cost | B29: =B27/Summary!$B$5 -> 1.190595238 | C29: =C27/Summary!$B$5 -> 4.762380952 | D29: =D27/Summary!$B$5 -> 0 | E29: =E27/Summary!$B$5 -> 0
A31: Total Operational Cost | B31: =B27+B18+B11+B4 -> 1582097.727 | C31: =C27+C18+C11+C4 -> 4094300 | D31: =D27+D18+D11+D4 -> 1889186 | E31: =E27+E18+E11+E4 -> 1185900
A32: Per Km Operational Cost | B32: =B29+B19+B12+B5 -> 14.39730519 | C32: =C29+C19+C12+C5 -> 22.12746032 | D32: =D29+D19+D12+D5 -> 29.98707937 | E32: =E29+E19+E12+E5 -> 18.82380952
A34: STAFF COST
A35: INR | B35: =IF($A$35='MCFV TCO Dashboard'!$C$15,'MCFV TCO Dashboard'!C39,) -> 50000
A36: USD | B36: =IF($A$36='MCFV TCO Dashboard'!$C$15,'MCFV TCO Dashboard'!C39*Currency!$C$5,) -> 0
A37: EURO | B37: =IF($A$37='MCFV TCO Dashboard'!$C$15,'MCFV TCO Dashboard'!C39*Currency!$C$8,) -> 0
A39: ANNUAL MAINTENANCE COST
A40: INR | B40: =IF($A$40='MCFV TCO Dashboard'!$C$15,'MCFV TCO Dashboard'!C47,) -> 17250 | C40: =IF($A$40='MCFV TCO Dashboard'!$C$15,'MCFV TCO Dashboard'!D47,) -> 21500 | D40: =IF($A$40='MCFV TCO Dashboard'!$C$15,'MCFV TCO Dashboard'!E47,) -> 43186 | E40: =IF($A$40='MCFV TCO Dashboard'!$C$15,'MCFV TCO Dashboard'!F47,) -> 44100
A41: USD | B41: =IF($A$41='MCFV TCO Dashboard'!$C$15,'MCFV TCO Dashboard'!C47*Currency!$C$5,) -> 0 | C41: =IF($A$41='MCFV TCO Dashboard'!$C$15,'MCFV TCO Dashboard'!D47*Currency!$C$5,) -> 0 | D41: =IF($A$41='MCFV TCO Dashboard'!$C$15,'MCFV TCO Dashboard'!E47*Currency!$C$5,) -> 0 | E41: =IF($A$41='MCFV TCO Dashboard'!$C$15,'MCFV TCO Dashboard'!F47*Currency!$C$5,) -> 0
A42: EURO | B42: =IF($A$42='MCFV TCO Dashboard'!$C$15,'MCFV TCO Dashboard'!C47*Currency!$C$8,) -> 0 | C42: =IF($A$42='MCFV TCO Dashboard'!$C$15,'MCFV TCO Dashboard'!D47*Currency!$C$8,) -> 0 | D42: =IF($A$42='MCFV TCO Dashboard'!$C$15,'MCFV TCO Dashboard'!E47*Currency!$C$8,) -> 0 | E42: =IF($A$42='MCFV TCO Dashboard'!$C$15,'MCFV TCO Dashboard'!F47*Currency!$C$8,) -> 0
A44: AVERAGE FUEL COST
A45: INR | B45: =IF($A$45='MCFV TCO Dashboard'!$C$15,'MCFV TCO Dashboard'!C43,) -> 6 | C45: =IF($A$45='MCFV TCO Dashboard'!$C$15,'MCFV TCO Dashboard'!D43,) -> 6 | D45: =IF($A$45='MCFV TCO Dashboard'!$C$15,'MCFV TCO Dashboard'!E43,) -> 89 | E45: =IF($A$45='MCFV TCO Dashboard'!$C$15,'MCFV TCO Dashboard'!F43,) -> 43
A46: USD | B46: =IF($A$46='MCFV TCO Dashboard'!$C$15,'MCFV TCO Dashboard'!C43*Currency!$C$5,) -> 0 | C46: =IF($A$46='MCFV TCO Dashboard'!$C$15,'MCFV TCO Dashboard'!$D$43*Currency!$C$5/3.78,) -> 0 | D46: =IF($A$46='MCFV TCO Dashboard'!$C$15,'MCFV TCO Dashboard'!E43*Currency!$C$5/3.78,) -> 0 | E46: =IF($A$46='MCFV TCO Dashboard'!$C$15,'MCFV TCO Dashboard'!F43*Currency!$C$5/2.567,) -> 0
A47: EURO | B47: =IF($A$47='MCFV TCO Dashboard'!$C$15,'MCFV TCO Dashboard'!C43*Currency!$C$8,) -> 0 | C47: =IF($A$47='MCFV TCO Dashboard'!$C$15,'MCFV TCO Dashboard'!D43*Currency!$C$8,) -> 0 | D47: =IF($A$47='MCFV TCO Dashboard'!$C$15,'MCFV TCO Dashboard'!E43*Currency!$C$8,) -> 0 | E47: =IF($A$47='MCFV TCO Dashboard'!$C$15,'MCFV TCO Dashboard'!F43*Currency!$C$8,) -> 0

Sheet Financing (hidden)
A1: Vehicle Cost | B1: e-MCFV (LT) | C1: e-MCFV (HT) | D1: Diesel - MCFV | E1: CNG - MCFV
A2: Total Cost of MCFV (₹) | B2: ='MCFV TCO Dashboard'!C20-'MCFV TCO Dashboard'!C23 -> 3500000 | C2: ='MCFV TCO Dashboard'!D20 -> 5436900 | D2: ='MCFV TCO Dashboard'!E20 -> 2589000 | E2: ='MCFV TCO Dashboard'!F20 -> 2456000
A3: Share of Operator (%) | B3: =100%-B6 -> 0.8 | C3: =100%-C6 -> 0.8 | D3: 0.8 | E3: 0.8
A4: Share of Operator (₹) | B4: =B3*B2 -> 2800000 | C4: =C3*C2 -> 4349520 | D4: =D3*D2 -> 2071200 | E4: =E3*E2 -> 1964800
A5: Processing Fees | B5: =IF(B8=0,0,IF(B4*0.5%>500,B4*0.5%,500)) -> 14000 | C5: =IF(C8=0,0,IF(C4*0.5%>500,C4*0.5%,500)) -> 21747.6 | D5: 10356 | E5: 9824
A6: Equity % | B6: ='MCFV TCO Dashboard'!C31 -> 0.2 | C6: ='MCFV TCO Dashboard'!D31 -> 0.2 | D6: ='MCFV TCO Dashboard'!E31 -> 0.2 | E6: ='MCFV TCO Dashboard'!F31 -> 0.2
A7: Equity (₹) | B7: =(B6*B2) -> 700000 | C7: =(C6*C2) -> 1087380 | D7: =(D6*D2) -> 517800 | E7: =(E6*E2) -> 491200
A8: Loan amount (₹) | B8: =B4 -> 2800000 | C8: =C4 -> 4349520 | D8: =D4 -> 2071200 | E8: =E4 -> 1964800
A9: Interest rate (%) | B9: ='MCFV TCO Dashboard'!C30 -> 0.08 | C9: ='MCFV TCO Dashboard'!D30 -> 0.08 | D9: ='MCFV TCO Dashboard'!E30 -> 0.11 | E9: ='MCFV TCO Dashboard'!F30 -> 0.11
A10: Term of payment (yrs) | B10: ='MCFV TCO Dashboard'!C29 -> 7 | C10: ='MCFV TCO Dashboard'!D29 -> 7 | D10: ='MCFV TCO Dashboard'!E29 -> 7 | E10: ='MCFV TCO Dashboard'!F29 -> 7
A11: No of EMI (Yearly) | B11: =B10*12 -> 84 | C11: =C10*12 -> 84 | D11: 84 | E11: 84
A12: Monthly EMI Loan (Rs.) | B12: =((PMT(B9/12,B10*12,-B8))+(B5/B11)) -> 43808.06699 | C12: =((PMT(C9/12,C10*12,-C8))+(C5/C11)) -> 68051.45127 | D12: 35587.27606 | E12: 33759.11549
A13: Total interest paid | B13: =(B12*B10*12)-B8 -> 879877.6275 | C13: =(C12*C10*12)-C8 -> 1366801.907 | D13: 918131.1889 | E13: 870965.701
A14: Yearly Interest Paid | B14: =B13/B10 -> 125696.8039 | C14: =C13/C10 -> 195257.4152 | D14: =D13/D10 -> 131161.5984 | E14: =E13/E10 -> 124423.6716
A15: EMI per KM (Rs.) | B15: =B14/Summary!B4 -> 1.995187364 | C15: =C14/Summary!B4 -> 3.099324051 | D15: =D14/Summary!B4 -> 2.081930134 | E15: =E14/Summary!B4 -> 1.974978914
A17: Total Interest Paid | B17: =VLOOKUP('MCFV TCO Dashboard'!$C$15,Financing!$A$22:$E$24,2,0) -> 879877.6275 | C17: =VLOOKUP('MCFV TCO Dashboard'!$C$15,Financing!$A$22:$E$24,3,0) -> 1366801.907 | D17: =VLOOKUP('MCFV TCO Dashboard'!$C$15,Financing!$A$22:$E$24,4,0) -> 918131.1889 | E17: =VLOOKUP('MCFV TCO Dashboard'!$C$15,Financing!$A$22:$E$24,5,0) -> 870965.701
A18: (Used for Dashboard Calc.)
A21: YEARLY INTEREST
A22: INR | B22: =IF($A$22='MCFV TCO Dashboard'!$C$15,Financing!B13,) -> 879877.6275 | C22: =IF($A$22='MCFV TCO Dashboard'!$C$15,Financing!C13,) -> 1366801.907 | D22: =IF($A$22='MCFV TCO Dashboard'!$C$15,Financing!D13,) -> 918131.1889 | E22: =IF($A$22='MCFV TCO Dashboard'!$C$15,Financing!E13,) -> 870965.701
A23: USD | B23: =IF($A$23='MCFV TCO Dashboard'!$C$15,Financing!B13*Currency!$C$5,) -> 0 | C23: =IF($A$23='MCFV TCO Dashboard'!$C$15,Financing!C13*Currency!$C$5,) -> 0 | D23: =IF($A$23='MCFV TCO Dashboard'!$C$15,Financing!D13*Currency!$C$5,) -> 0 | E23: =IF($A$23='MCFV TCO Dashboard'!$C$15,Financing!E13*Currency!$C$5,) -> 0
A24: EURO | B24: =IF($A$24='MCFV TCO Dashboard'!$C$15,Financing!B13*Currency!$C$8,) -> 0 | C24: =IF($A$24='MCFV TCO Dashboard'!$C$15,Financing!C13*Currency!$C$8,) -> 0 | D24: =IF($A$24='MCFV TCO Dashboard'!$C$15,Financing!D13*Currency!$C$8,) -> 0 | E24: =IF($A$24='MCFV TCO Dashboard'!$C$15,Financing!E13*Currency!$C$8,) -> 0

Sheet TCO_1 (hidden)
A1: Parameter | B1: Unit | C1: e-MCFV (LT) | D1: e-MCFV (HT) | E1: Diesel - MCFV | F1: CNG - MCFV
A2: Discount rate value | B2: - | C2: =Summary!B10 -> 0.1 | D2: =Summary!C10 -> 0.1 | E2: =Summary!D10 -> 0.1 | F2: =Summary!E10 -> 0.1
A3: Resale rate value | B3: - | C3: =Summary!B11 -> 0.2 | D3: =Summary!C11 -> 0.2 | E3: =Summary!D11 -> 0.1 | F3: =Summary!E11 -> 0.1
A4: Capital recovery factor (CRF)_N | B4: - | C4: =C2*(1+C2)^Summary!B3 -> 0.259374246 | D4: =D2*(1+D2)^Summary!B3 -> 0.259374246 | E4: =E2*(1+E2)^Summary!B3 -> 0.259374246 | F4: =F2*(1+F2)^Summary!B3 -> 0.259374246
A5: Capital recovery factor (CRF)_D | B5: - | C5: =((1+C2)^Summary!B3)-1 -> 1.59374246 | D5: =(1+D2)^Summary!B3-1 -> 1.59374246 | E5: =(1+E2)^Summary!B3-1 -> 1.59374246 | F5: =(1+F2)^Summary!B3-1 -> 1.59374246
A6: CRF | B6: - | C6: =C4/C5 -> 0.1627453949 | D6: =D4/D5 -> 0.1627453949 | E6: =E4/E5 -> 0.1627453949 | F6: =F4/F5 -> 0.1627453949
A7: Present value factor (PVF) | B7: - | C7: =1/(1+C2)^10 -> 0.3855432894 | D7: =1/(1+D2)^Summary!B3 -> 0.3855432894 | E7: =1/(1+E2)^Summary!B3 -> 0.3855432894 | F7: =1/(1+F2)^Summary!B3 -> 0.3855432894
A8: Residual value (RV) | B8: ₹ | C8: =Summary!B14*C3 -> 890375.5255 | D8: =Summary!C14*D3 -> 1450740.381 | E8: =Summary!D14*E3 -> 356337.7189 | F8: =Summary!E14*F3 -> 338396.5701
A9: Annual Travel Distance | B9: km | C9: =Summary!$B$4 -> 63000 | D9: =Summary!$B$4 -> 63000 | E9: =Summary!$B$4 -> 63000 | F9: =Summary!$B$4 -> 63000
A10: Capex component | B10: ₹ | C10: =((Summary!B19-(C8*C7))*C6) -> 924979.6155 | D10: =(Summary!C19-(D8*D7))*D6 -> 1537029.139 | E10: =(Summary!D19-(E8*E7))*E6 -> 557564.6768 | F10: =(Summary!E19-(F8*F7))*F6 -> 529492.0079
A11: TCO | B11: ₹/km | C11: =(C10+L22)/C9 -> 23.52873691 | D11: =(D10+L23)/D9 -> 37.9936544 | E11: =(E10+L24)/E9 -> 27.27599511 | F11: =(F10+L25)/F9 -> 19.97105113
A13: Opex / year
A14: Vehicle type | B14: Unit | C14: 1 | D14: =C14+1 -> 2 | E14: 3 | F14: 4 | G14: 5 | H14: 6 | I14: 7 | J14: 8 | K14: 9 | L14: 10 | M14: Total
A15: e-MCFV (LT) | B15: ₹ | C15: =Summary!$B$27/(1+$C$2)^C14 -> 824572.9339 | D15: =Summary!$B$27/(1+$C$2)^D14 -> 749611.7581 | E15: =Summary!$B$27/(1+$C$2)^E14 -> 681465.2346 | F15: =Summary!$B$27/(1+$C$2)^F14 -> 619513.8497 | G15: =Summary!$B$27/(1+$C$2)^G14 -> 563194.4088 | H15: =Summary!$B$27/(1+$C$2)^H14 -> 511994.9171 | I15: =Summary!$B$27/(1+$C$2)^I14 -> 465449.9246 | J15: =Summary!$B$27/(1+$C$2)^J14 -> 423136.2951 | K15: =Summary!$B$27/(1+$C$2)^K14 -> 384669.3592 | L15: =Summary!$B$27/(1+$C$2)^L14 -> 349699.4174 | M15: =SUM(C15:L15)/Summary!B3 -> 557330.8098
A16: e-MCFV (HT) | B16: ₹ | C16: =Summary!$C$27/(1+$D$2)^C14 -> 1267300 | D16: =Summary!$C$27/(1+$D$2)^D14 -> 1152090.909 | E16: =Summary!$C$27/(1+$D$2)^E14 -> 1047355.372 | F16: =Summary!$C$27/(1+$D$2)^F14 -> 952141.2472 | G16: =Summary!$C$27/(1+$D$2)^G14 -> 865582.952 | H16: =Summary!$C$27/(1+$D$2)^H14 -> 786893.5927 | I16: =Summary!$C$27/(1+$D$2)^I14 -> 715357.8116 | J16: =Summary!$C$27/(1+$D$2)^J14 -> 650325.2832 | K16: =Summary!$C$27/(1+$D$2)^K14 -> 591204.8029 | L16: =Summary!$C$27/(1+$D$2)^L14 -> 537458.9118 | M16: =SUM(C16:L16)/Summary!B3 -> 856571.0882
A17: Diesel - MCFV | B17: ₹ | C17: =Summary!$D$27/(1+$E$2)^C14 -> 1717441.818 | D17: =Summary!$D$27/(1+$E$2)^D14 -> 1561310.744 | E17: =Summary!$D$27/(1+$E$2)^E14 -> 1419373.403 | F17: =Summary!$D$27/(1+$E$2)^F14 -> 1290339.458 | G17: =Summary!$D$27/(1+$E$2)^G14 -> 1173035.871 | H17: =Summary!$D$27/(1+$E$2)^H14 -> 1066396.246 | I17: =Summary!$D$27/(1+$E$2)^I14 -> 969451.1327 | J17: =Summary!$D$27/(1+$E$2)^J14 -> 881319.2116 | K17: =Summary!$D$27/(1+$E$2)^K14 -> 801199.2833 | L17: =Summary!$D$27/(1+$E$2)^L14 -> 728362.9848 | M17: =SUM(C17:L17)/Summary!B3 -> 1160823.015
A18: CNG - MCFV | B18: ₹ | C18: =Summary!$E$27/(1+$F$2)^C14 -> 1078090.909 | D18: =Summary!$E$27/(1+$F$2)^D14 -> 980082.6446 | E18: =Summary!$E$27/(1+$F$2)^E14 -> 890984.2224 | F18: =Summary!$E$27/(1+$F$2)^F14 -> 809985.6567 | G18: =Summary!$E$27/(1+$F$2)^G14 -> 736350.597 | H18: =Summary!$E$27/(1+$F$2)^H14 -> 669409.6337 | I18: =Summary!$E$27/(1+$F$2)^I14 -> 608554.2124 | J18: =Summary!$E$27/(1+$F$2)^J14 -> 553231.1022 | K18: =Summary!$E$27/(1+$F$2)^K14 -> 502937.3656 | L18: =Summary!$E$27/(1+$F$2)^L14 -> 457215.7869 | M18: =SUM(C18:L18)/Summary!B3 -> 728684.2131
A20: Opex Sum
A21: Vehicle type | B21: Unit | C21: 1 | D21: =C21+1 -> 2 | E21: 3 | F21: 4 | G21: 5 | H21: 6 | I21: 7 | J21: 8 | K21: 9 | L21: 10
A22: e-MCFV (LT) | B22: ₹/km | C22: =(1/C21)*SUM($C$15:C15) -> 824572.9339 | D22: =(1/D21)*SUM($C$15:D15) -> 787092.346 | E22: =(1/E21)*SUM($C$15:E15) -> 751883.3089 | F22: =(1/F21)*SUM($C$15:F15) -> 718790.9441 | G22: =(1/G21)*SUM($C$15:G15) -> 687671.637 | H22: =(1/H21)*SUM($C$15:H15) -> 658392.1837 | I22: =(1/I21)*SUM($C$15:I15) -> 630829.0038 | J22: =(1/J21)*SUM($C$15:J15) -> 604867.4152 | K22: =(1/K21)*SUM($C$15:K15) -> 580400.9645 | L22: =(1/L21)*SUM($C$15:L15) -> 557330.8098
A23: e-MCFV (HT) | B23: ₹/km | C23: =(1/C21)*SUM($C$16:C16) -> 1267300 | D23: =(1/D21)*SUM($C$16:D16) -> 1209695.455 | E23: =(1/E21)*SUM($C$16:E16) -> 1155582.094 | F23: =(1/F21)*SUM($C$16:F16) -> 1104721.882 | G23: =(1/G21)*SUM($C$16:G16) -> 1056894.096 | H23: =(1/H21)*SUM($C$16:H16) -> 1011894.012 | I23: =(1/I21)*SUM($C$16:I16) -> 969531.6978 | J23: =(1/J21)*SUM($C$16:J16) -> 929630.896 | K23: =(1/K21)*SUM($C$16:K16) -> 892027.9967 | L23: =(1/L21)*SUM($C$16:L16) -> 856571.0882
A24: Diesel - MCFV | B24: ₹/km | C24: =(1/C21)*SUM($C$17:C17) -> 1717441.818 | D24: =(1/D21)*SUM($C$17:D17) -> 1639376.281 | E24: =(1/E21)*SUM($C$17:E17) -> 1566041.988 | F24: =(1/F21)*SUM($C$17:F17) -> 1497116.356 | G24: =(1/G21)*SUM($C$17:G17) -> 1432300.259 | H24: =(1/H21)*SUM($C$17:H17) -> 1371316.257 | I24: =(1/I21)*SUM($C$17:I17) -> 1313906.953 | J24: =(1/J21)*SUM($C$17:J17) -> 1259833.486 | K24: =(1/K21)*SUM($C$17:K17) -> 1208874.13 | L24: =(1/L21)*SUM($C$17:L17) -> 1160823.015
A25: CNG - MCFV | B25: ₹/km | C25: =(1/C21)*SUM($C$18:C18) -> 1078090.909 | D25: =(1/D21)*SUM($C$18:D18) -> 1029086.777 | E25: =(1/E21)*SUM($C$18:E18) -> 983052.592 | F25: =(1/F21)*SUM($C$18:F18) -> 939785.8582 | G25: =(1/G21)*SUM($C$18:G18) -> 899098.806 | H25: =(1/H21)*SUM($C$18:H18) -> 860817.2772 | I25: =(1/I21)*SUM($C$18:I18) -> 824779.6966 | J25: =(1/J21)*SUM($C$18:J18) -> 790836.1223 | K25: =(1/K21)*SUM($C$18:K18) -> 758847.3715 | L25: =(1/L21)*SUM($C$18:L18) -> 728684.2131
A27: TCO / year
A28: Vehicle type | B28: Unit | C28: 1 | D28: =C28+1 -> 2 | E28: 3 | F28: 4 | G28: 5 | H28: 6 | I28: 7 | J28: 8 | K28: 9 | L28: 10 | M28: Average TCO
A29: PVF | B29: - | C29: =1/(1+$C$2)^C28 -> 0.9090909091 | D29: =1/(1+$C$2)^D28 -> 0.826446281 | E29: 0.7513148009 | F29: 0.6830134554 | G29: 0.6209213231 | H29: 0.5644739301 | I29: 0.5131581182 | J29: 0.4665073802 | K29: 0.4240976184 | L29: 0.3855432894
A30: CRF | B30: - | C30: =($C$2*(1+$C$2)^C28)/((1+$C$2)^C28-1) -> 1.1 | D30: =($C$2*(1+$C$2)^D28)/((1+$C$2)^D28-1) -> 0.5761904762 | E30: 0.4021148036 | F30: 0.3154708037 | G30: 0.2637974808 | H30: 0.2296073804 | I30: 0.2054054997 | J30: 0.1874440176 | K30: 0.1736405391 | L30: 0.1627453949
A31: e-MCFV (LT) | B31: ₹/km | C31: =(((Summary!$B$19-($C$8*C29))*C30)+C22)/($C$9) -> 104.1867111 | D31: =(((Summary!$B$19-($C$8*D29))*D30)+D22)/($C$9) -> 60.88465858 | E31: =(((Summary!$B$19-($C$8*E29))*E30)+E22)/($C$9) -> 46.13308564 | F31: =(((Summary!$B$19-($C$8*F29))*F30)+F22)/($C$9) -> 38.54357052 | G31: =(((Summary!$B$19-($C$8*G29))*G30)+G22)/($C$9) -> 33.8365953 | H31: =(((Summary!$B$19-($C$8*H29))*H30)+H22)/($C$9) -> 30.58426235 | I31: =(((Summary!$B$19-($C$8*I29))*I30)+I22)/($C$9) -> 28.17352916 | J31: =(((Summary!$B$19-($C$8*J29))*J30)+J22)/($C$9) -> 26.29700886 | K31: =(((Summary!$B$19-($C$8*K29))*K30)+K22)/($C$9) -> 24.78323033 | L31: =(((Summary!$B$19-($C$8*L29))*L30)+L22)/($C$9) -> 23.52873691 | M31: =SUM(C31:L31)/$L$28 -> 41.69513888
A32: PVF | B32: - | C32: =1/(1+$D$2)^C28 -> 0.9090909091 | D32: =1/(1+$D$2)^D28 -> 0.826446281 | E32: 0.7513148009 | F32: 0.6830134554 | G32: 0.6209213231 | H32: 0.5644739301 | I32: 0.5131581182 | J32: 0.4665073802 | K32: 0.4240976184 | L32: 0.3855432894
A33: CRF | B33: - | C33: =($D$2*(1+$D$2)^C28)/((1+$D$2)^C28-1) -> 1.1 | D33: =($D$2*(1+$D$2)^D28)/((1+$D$2)^D28-1) -> 0.5761904762 | E33: 0.4021148036 | F33: 0.3154708037 | G33: 0.2637974808 | H33: 0.2296073804 | I33: 0.2054054997 | J33: 0.1874440176 | K33: 0.1736405391 | L33: 0.1627453949
A34: e-MCFV (HT) | B34: ₹/km | C34: =(((Summary!$C$19-($D$8*C32))*C33)+C23)/($D$9) -> 171.756059 | D34: =(((Summary!$C$19-($D$8*D32))*D33)+D23)/($D$9) -> 99.72864233 | E34: =(((Summary!$C$19-($D$8*E32))*E33)+E23)/($D$9) -> 75.23696152 | F34: =(((Summary!$C$19-($D$8*F32))*F33)+F23)/($D$9) -> 62.66675503 | G34: =(((Summary!$C$19-($D$8*G32))*G33)+G23)/($D$9) -> 54.89234663 | H34: =(((Summary!$C$19-($D$8*H32))*H33)+H23)/($D$9) -> 49.53636731 | I34: =(((Summary!$C$19-($D$8*I32))*I33)+I23)/($D$9) -> 45.57827098 | J34: =(((Summary!$C$19-($D$8*J32))*J33)+J23)/($D$9) -> 42.50645087 | K34: =(((Summary!$C$19-($D$8*K32))*K33)+K23)/($D$9) -> 40.03560135 | L34: =(((Summary!$C$19-($D$8*L32))*L33)+L23)/($D$9) -> 37.9936544 | M34: =SUM(C34:L34)/$L$28 -> 67.99311094
A35: PVF | B35: - | C35: =1/(1+$E$2)^C28 -> 0.9090909091 | D35: =1/(1+$E$2)^D28 -> 0.826446281 | E35: 0.7513148009 | F35: 0.6830134554 | G35: 0.6209213231 | H35: 0.5644739301 | I35: 0.5131581182 | J35: 0.4665073802 | K35: 0.4240976184 | L35: 0.3855432894
A36: CRF | B36: - | C36: =($E$2*(1+$E$2)^C28)/((1+$E$2)^C28-1) -> 1.1 | D36: =($E$2*(1+$E$2)^D28)/((1+$E$2)^D28-1) -> 0.5761904762 | E36: 0.4021148036 | F36: 0.3154708037 | G36: 0.2637974808 | H36: 0.2296073804 | I36: 0.2054054997 | J36: 0.1874440176 | K36: 0.1736405391 | L36: 0.1627453949
A37: Diesel - MCFV | B37: ₹/km | C37: =(((Summary!$D$19-($E$8*C35))*C36)+C24)/($E$9) -> 83.82252392 | D37: =(((Summary!$D$19-($E$8*D35))*D36)+D24)/($E$9) -> 55.91866115 | E37: =(((Summary!$D$19-($E$8*E35))*E36)+E24)/($E$9) -> 45.89323503 | F37: =(((Summary!$D$19-($E$8*F35))*F36)+F24)/($E$9) -> 40.3885309 | G37: =(((Summary!$D$19-($E$8*G35))*G36)+G24)/($E$9) -> 36.72925339 | H37: =(((Summary!$D$19-($E$8*H35))*H36)+H24)/($E$9) -> 34.02079302 | I37: =(((Summary!$D$19-($E$8*I35))*I36)+I24)/($E$9) -> 31.8775281 | J37: =(((Summary!$D$19-($E$8*J35))*J36)+J24)/($E$9) -> 30.10488286 | K37: =(((Summary!$D$19-($E$8*K35))*K36)+K24)/($E$9) -> 28.59333276 | L37: =(((Summary!$D$19-($E$8*L35))*L36)+L24)/($E$9) -> 27.27599511 | M37: =SUM(C37:L37)/$L$28 -> 41.46247362
A38: PVF | B38: - | C38: =1/(1+$F$2)^C28 -> 0.9090909091 | D38: =1/(1+$F$2)^D28 -> 0.826446281 | E38: 0.7513148009 | F38: 0.6830134554 | G38: 0.6209213231 | H38: 0.5644739301 | I38: 0.5131581182 | J38: 0.4665073802 | K38: 0.4240976184 | L38: 0.3855432894
A39: CRF | B39: - | C39: =($F$2*(1+$F$2)^C28)/((1+$F$2)^C28-1) -> 1.1 | D39: =($F$2*(1+$F$2)^D28)/((1+$F$2)^D28-1) -> 0.5761904762 | E39: 0.4021148036 | F39: 0.3154708037 | G39: 0.2637974808 | H39: 0.2296073804 | I39: 0.2054054997 | J39: 0.1874440176 | K39: 0.1736405391 | L39: 0.1627453949
A40: CNG - MCFV | B40: ₹/km | C40: =(((Summary!$E$19-($F$8*C38))*C39)+C25)/($F$9) -> 70.8262954 | D40: =(((Summary!$E$19-($F$8*D38))*D39)+D25)/($F$9) -> 44.72625971 | E40: =(((Summary!$E$19-($F$8*E38))*E39)+E25)/($F$9) -> 35.58032829 | F40: =(((Summary!$E$19-($F$8*F38))*F39)+F25)/($F$9) -> 30.70497868 | G40: =(((Summary!$E$19-($F$8*G38))*G39)+G25)/($F$9) -> 27.5611417 | H40: =(((Summary!$E$19-($F$8*H38))*H39)+H25)/($F$9) -> 25.300668 | I40: =(((Summary!$E$19-($F$8*I38))*I39)+I25)/($F$9) -> 23.55866671 | J40: =(((Summary!$E$19-($F$8*J38))*J39)+J25)/($F$9) -> 22.15157925 | K40: =(((Summary!$E$19-($F$8*K38))*K39)+K25)/($F$9) -> 20.97652848 | L40: =(((Summary!$E$19-($F$8*L38))*L39)+L25)/($F$9) -> 19.97105113 | M40: =SUM(C40:L40)/$L$28 -> 32.13574973
